Cogmind - Beta 15 @@@ ROGUE MODE // 2025.09.03 @ 00:39:42 Player: honbee Result: Destroyed by G-50 Soldier with Heavy Laser Performance ------------- Evolutions (2) 1000 Regions Visited (3) 600 Robots Destroyed (69) 345 Value Destroyed (1888) 1888 Prototype IDs (8) 160 Alien Tech Used (0) 0 Bonus (88) 88 TOTAL SCORE: 4081 Bonus ------- High Alert Combat Kills 88 Cogmind --------- Core Integrity 0/550 Matter 180/300 Energy 100/100 System Corruption 0% Temperature Cool (18) Movement Core (1500) Ox29 Location -8/Materials Parts ------- > --- POWER (2) -------- (None) > --- PROPULSION (3) --- (None) > --- UTILITY (3) ------ Medium Storage Unit Huge Storage Unit > --- WEAPON (3) ------- (None) > --- INVENTORY (25) --- Small Storage Unit Peak State ------------ > --- POWER ------------ Improved Ion Engine Light Deuterium Engine > --- PROPULSION ------- Improved Aluminum Leg Improved Aluminum Leg Improved Aluminum Leg > --- UTILITY ---------- Improved Heat Sink Medium Storage Unit Sensor Array > --- WEAPON ----------- Beam Rifle Particle Cannon Improved Light Cannon > --- INVENTORY -------- Ion Engine Improved Aluminum Leg Improved Aluminum Leg Improved Aluminum Leg Heat Sink Small Storage Unit Huge Storage Unit Grenade Launcher Mini Grenade Launcher Mining Claw [Rating: 23] Favorites ----------- Power Ion Engine Engine Ion Engine Power Core Light Nuclear Core Propulsion Improved Aluminum Leg Leg Improved Aluminum Leg Utility Sensor Array Device Sensor Array Storage Medium Storage Unit Weapon Medium Laser Energy Gun Medium Laser Energy Cannon Particle Cannon Ballistic Cannon Improved Light Cannon Launcher Grenade Launcher Slashing Weapon Mining Claw Build | -11 -10 -9 -8 ------- Run | Yrd Mat Mat Mat Slots Evolved 4 | . . 2 2 Power 1 | . . . 1 Propulsion 1 | . . 1 . Utility 1 | . . 1 . Weapon 1 | . . . 1 Parts Attached 33 | 6 8 8 11 Power 6 | 1 . 1 4 Engine 5 | 1 . 1 3 Core 1 | . . . 1 Reactor . | . . . . Propulsion 11 | 2 4 2 3 Treads . | . . . . Leg 11 | 2 4 2 3 Wheel . | . . . . Hover . | . . . . Flight . | . . . . Utility 8 | 1 3 1 3 Device 5 | . 2 1 2 Storage 3 | 1 1 . 1 Processor . | . . . . Hackware . | . . . . Protection . | . . . . Artifact . | . . . . Weapon 8 | 2 1 4 1 Energy Gun 3 | 2 . 1 . Energy Cannon 1 | . . 1 . Ballistic Gun . | . . . . Ballistic Cannon 1 | . . 1 . Launcher 2 | . 1 1 . Special Weapon . | . . . . Impact Weapon . | . . . . Slashing Weapon 1 | . . . 1 Piercing Weapon . | . . . . Special Melee Weapon . | . . . . Unidentified Prototypes . | . . . . Parts Lost 20 | . . . 20 Power 5 | . . . 5 Propulsion 5 | . . . 5 Utility 4 | . . . 4 Weapon 6 | . . . 6 Highest Loss Streak 18 | . . . 18 To Critical Strikes . | . . . . Average Backups 8 | 2 6 9 8 Power . | . 1 1 . Propulsion 3 | 1 3 3 2 Utility 1 | . . 2 2 Weapon 2 | . 1 3 2 Tool/Special . | . . . . Unused Backups 7 | . 6 1 . Power 1 | . 1 . . Propulsion 4 | . 4 . . Utility . | . . . . Weapon 2 | . 1 1 . Tool/Special . | . . . . Average Slot Usage (%) 94 | . 97 97 84 Engine 12 | . 14 11 12 Leg 28 | . 28 33 21 Device 15 | . 11 19 15 Storage 11 | . 14 11 9 Energy Gun 10 | . 20 4 6 Energy Cannon 5 | . . 9 6 Ballistic Cannon 4 | . . 7 7 Launcher 3 | . 7 . 1 Peak Build Rating 23 | 6 10 16 23 Average Rating 12 | 5 7 15 18 On Entrance 8 | . 6 10 16 Naked Turns . | . . . . Heaviest Build 95 | 14 21 27 95 Greatest Support 39 | 20 26 39 39 Greatest Overweight (x) 31 | . . . 31 Average Overweight (x) . | . . . . Largest Inventory Capacity 25 | 8 10 10 25 Average Capacity 9 | 7 8 10 11 Most Carried 10 | 4 9 10 10 Average Carried 8 | 2 6 9 8 Final Capacity 25 | 8 10 10 25 Final Carried 10 | 4 9 10 1 Class Distribution -------------------- 86% | Mutant 13% | Skirmisher Dominant Class ---------------- Mutant | -10/Materials Mutant | -9/Materials Skirmisher | -8/Materials Resources | -11 -10 -9 -8 ----------- Run | Yrd Mat Mat Mat Matter Collected 955 | 229 191 269 266 Remotely . | . . . . Salvage Created 1635 | . 432 450 753 Parts 103 | . 34 17 52 Haulers Intercepted 4 | . 2 2 . Recyclers Shooed 1 | . 1 . . Parts Field Recycled . | . . . . Retrieved Matter . | . . . . Parts Self-Destructed . | . . . . Prevented . | . . . . Kills | -11 -10 -9 -8 ------- Run | Yrd Mat Mat Mat Combat Hostiles Destroyed 55 | . 16 13 26 Melee 1 | . . . 1 Guns 10 | . 7 1 2 Cannons 14 | . . 6 8 AOE 29 | . 9 6 14 Classes Destroyed 13 | . 5 2 6 Worker 3 | . 1 . 2 Builder 3 | . . . 3 Hauler 4 | . 2 2 . Recycler 1 | . . . 1 Operator 1 | . 1 . . Watcher 2 | . . . 2 Swarmer 20 | . 8 4 8 Grunt 21 | . 8 5 8 Brawler 3 | . . 1 2 Duelist 3 | . . . 3 Protector 1 | . . . 1 Sentry 6 | . . 3 3 Hunter 1 | . . . 1 Best Kill Streak 21 | . 5 4 21 Combat Bots Only 16 | . 5 4 16 Max Kills in Single Turn 4 | . 2 3 4 Gunslinging . | . . . . Exploded 4 | . 2 3 4 Melee 1 | . . . 1 Uniques/NPCs Destroyed . | . . . . Combat | -11 -10 -9 -8 -------- Run | Yrd Mat Mat Mat Hostile Shots Fired 262 | . 44 35 183 Missed 73 | . 12 9 52 Hits 189 | . 32 26 131 Melee 9 | . . . 9 Projectile 180 | . 32 26 122 Critical Strikes 8 | . 1 2 5 Damage Taken 2835 | . 372 390 2073 Core 666 | . 43 66 557 Absorbed by Shields 100 | . . . 100 Regen/Repaired (Parts) 49 | . . 49 . Core Remaining (%) 88 | 100 82 83 . Volleys Fired 105 | . 34 38 33 Largest 3 | . 2 2 3 Hottest 157 | . 100 124 157 Shots Fired 219 | . 66 67 86 Gun 102 | . 58 18 26 Cannon 96 | . . 45 51 Launcher 21 | . 8 4 9 Special . | . . . . Kinetic 46 | . . 17 29 Thermal 152 | . 58 46 48 Explosive 21 | . 8 4 9 Electromagnetic . | . . . . Robot Hit Streak 8 | . 5 4 8 Robot Miss Streak 5 | . 4 5 3 Penetration Max . | . . . . Secondary Targets . | . . . . Shots Hit Robots 112 | . 33 28 51 Core Hits 110 | . 31 19 60 Critical Kills . | . . . . Critical Parts Destroyed . | . . . . Critical Strikes 6 | . 3 . 3 Burn 5 | . 3 . 2 Blast 1 | . . . 1 Melee Attacks 3 | . . . 3 Impact . | . . . . Slashing 3 | . . . 3 Piercing . | . . . . Sneak Attacks . | . . . . Combat Hostiles . | . . . . Follow-up Attacks . | . . . . Damage Inflicted 4815 | . 1062 1043 2710 Guns 630 | . 362 63 205 Cannons 1130 | . . 502 628 Explosions 2978 | . 696 449 1833 Melee 35 | . . . 35 Ramming 42 | . 4 29 9 Kinetic 556 | . . 195 361 Thermal 1204 | . 362 370 472 Explosive 2978 | . 696 449 1833 Electromagnetic . | . . . . Impact . | . . . . Slashing 35 | . . . 35 Piercing . | . . . . Highest Corruption . | . . . . Average Corruption . | . . . . Corruption Purged . | . . . . Corruption Blocked . | . . . . Overload Shots . | . . . . Overflow Damage 147 | . . 2 145 Projectiles 2 | . . 2 . Explosions 133 | . . . 133 Melee 12 | . . . 12 Knockbacks 4 | . . . 4 Impact . | . . . . Kinetic 4 | . . . 4 Secondary . | . . . . Self-Inflicted Damage 403 | . 74 69 260 Shots 12 | . 2 2 8 Rammed . | . . . . Targets Rammed 9 | . 1 6 2 Kicked 9 | . 1 6 2 Crushed . | . . . . Highest Temperature 456 | . 225 198 456 Average Temperature 77 | . 59 41 131 Received Heat Transfer 835 | . 90 138 607 Effects 2 | . . . 2 Shutdowns 1 | . . . 1 Matter Decay 1 | . . . 1 Siege Activations . | . . . . Martial Activations . | . . . . Shielding Activations . | . . . . Robots Disrupted . | . . . . Combat Hostiles . | . . . . Robots Corrupted . | . . . . Combat Hostiles . | . . . . Parts Fried . | . . . . Impact Corruptions . | . . . . Robots Melted . | . . . . Combat Hostiles . | . . . . Parts Melted 3 | . 3 . . Heat Transferred 3182 | . 1295 740 1147 Parts Sabotaged . | . . . . Parts Stolen . | . . . . Parts Stripped . | . . . . Power Chain Reactions . | . . . . Alert | -11 -10 -9 -8 ------- Run | Yrd Mat Mat Mat Maximum Alert Level 2 | . 1 . 2 Low Security (%) 76 | 100 49 100 66 Level 1 20 | . 50 . 15 Level 2 3 | . . . 18 Level 3 . | . . . . Level 4 . | . . . . Level 5 . | . . . . High Security . | . . . . Max Security . | . . . . Peak Influence 568 | . 314 196 568 Initial 116 | . . 116 61 Average 148 | . 177 125 181 Influence Increases 1799 | . 559 403 837 Destroy 0b10 Robot/C 1080 | . 320 260 500 Destroy 0b10 Robot/NC 75 | . 20 10 45 Destroy Leader 182 | . 44 64 74 Successful Hack 45 | . 39 6 . Disable Machine 105 | . 60 30 15 Anti-Garrison Action 150 | . . . 150 Destroy Structure 147 | . 61 33 53 Lose Combat Pursuer 15 | . 15 . . Influence Decreases 1281 | . 283 534 464 Entered New Map 244 | . . 160 84 Time Decay 837 | . 283 374 180 Lost Part 200 | . . . 200 Squads Dispatched 10 | . 2 3 5 Investigation 1 | . . 1 . Extermination . | . . . . Reinforcement 6 | . 2 2 2 Assault 2 | . . . 2 Garrison 1 | . . . 1 Intercept . | . . . . Searches Triggered . | . . . . Construction Impeded 2 | . . 1 1 Haulers Reinforced . | . . . . Active Scanning Responses . | . . . . Cargo Convoy Interrupts . | . . . . Stealth | -11 -10 -9 -8 --------- Run | Yrd Mat Mat Mat Distress Signals 3 | . . 1 2 Communications Jammed . | . . . . Distress Signals . | . . . . Times Spotted 80 | . 24 20 36 Peak Tracking Total 9 | . 4 4 9 Tactical Retreats 1 | . 1 . . Traps | -11 -10 -9 -8 ------- Run | Yrd Mat Mat Mat Traps Triggered . | . . . . Indirectly . | . . . . Trap Hack Attempts . | . . . . Triggered . | . . . . Disarmed . | . . . . Reprogrammed . | . . . . Reused . | . . . . Traps Extracted . | . . . . Installed . | . . . . Triggered . | . . . . Machines | -11 -10 -9 -8 ---------- Run | Yrd Mat Mat Mat Machines Disabled 8 | . 4 2 2 Max in Single Turn 2 | . 2 1 1 Garrison Access 1 | . . . 1 Machines Repaired . | . . . . Machines Dismantled . | . . . . Machines Sabotaged . | . . . . Overloaded Fab Kills . | . . . . Hacking | -11 -10 -9 -8 --------- Run | Yrd Mat Mat Mat Machines Accessed 10 | . 7 3 . Terminals 6 | . 5 1 . Fabricators . | . . . . Repair Stations 1 | . . 1 . Recycling Units 2 | . 2 . . Scanalyzers 1 | . . 1 . Garrison Access . | . . . . Total Hacks 43 | . 29 14 . Successful 26 | . 15 11 . Failed 17 | . 14 3 . Catastrophic . | . . . . Database Lockouts . | . . . . Manual 32 | . 29 3 . Terminals 30 | . 27 3 . Fabricators . | . . . . Repair Stations 2 | . . 2 . Recycling Units 2 | . 2 . . Scanalyzers 9 | . . 9 . Garrison Access . | . . . . Terminal Hacks 9 | . 8 1 . Prototype ID Bank 8 | . 7 1 . Disarm Traps 1 | . 1 . . Fabricator Hacks . | . . . . Repair Station Hacks 2 | . . 2 . Scan Component 1 | . . 1 . Repair 1 | . . 1 . Recycling Unit Hacks . | . . . . Scanalyzer 8 | . . 8 . Insert Component 4 | . . 4 . Analyze 4 | . . 4 . Garrison Access Hacks . | . . . . Unauthorized Hacks 7 | . 7 . . Terminals 5 | . 5 . . Track 2 | . 2 . . Botnet 3 | . 3 . . Fabricators . | . . . . Repair Stations . | . . . . Recycling Units 2 | . 2 . . Reject 2 | . 2 . . Scanalyzers . | . . . . Garrison Access . | . . . . Data Cores Recovered . | . . . . Used . | . . . . Hacking Detections 6 | . 4 2 . Full Trace Events 4 | . 2 2 . Feedback Events . | . . . . Feedback Blocked . | . . . . Robot Schematics Acquired . | . . . . Robots Built . | . . . . Authchips . | . . . . Time . | . . . . Total Robot Build Rating . | . . . . Part Schematics Acquired 4 | . . 4 . Parts Built . | . . . . Authchips . | . . . . Time . | . . . . Total Part Build Rating . | . . . . Parts Repaired 1 | . . 1 . Time 26 | . . 26 . Parts Recycled . | . . . . Recycled Matter . | . . . . Retrieved Matter . | . . . . Retrieved Components . | . . . . Parts Scanalyzed 4 | . . 4 . Part Schematics Acquired 4 | . . 4 . Parts Damaged . | . . . . Bothacking | -11 -10 -9 -8 ------------ Run | Yrd Mat Mat Mat Used RIF Installer . | . . . . Robots Hacked . | . . . . Non-combat . | . . . . Combat . | . . . . Robot Hacks Applied . | . . . . Relay Couplers Released 1 | . . . 1 Machine Destruction 1 | . . . 1 Fabnet Peak Effective % . | . . . . Robots Rewired . | . . . . Allies Hacked . | . . . . Hacks Repelled . | . . . . Allies | -11 -10 -9 -8 -------- Run | Yrd Mat Mat Mat Total Allies . | . . . . Largest Group . | . . . . Highest-Rated Group . | . . . . Highest-Rated Ally . | . . . . Total Orders . | . . . . Ally Attacks . | . . . . Total Damage . | . . . . Kills . | . . . . Allies Corrupted . | . . . . Allies Melted . | . . . . Intel | -11 -10 -9 -8 ------- Run | Yrd Mat Mat Mat Active Infowar (turns) 1324 | . 166 863 295 Sensors 1324 | . 166 863 295 Robot Analysis Total . | . . . . Derelict Logs Recovered . | . . . . Drone Launches . | . . . . Drone Recoveries . | . . . . Exploration | -11 -10 -9 -8 ------------- Run | Yrd Mat Mat Mat Turns Passed 2020 | 86 703 863 368 Spaces Moved 1070 | 63 431 435 141 Core 4 | 2 . . 2 Treads . | . . . . Legs 1066 | 61 431 435 139 Wheels . | . . . . Hover . | . . . . Flight . | . . . . Fastest Speed 50 | 50 120 120 120 Average Speed 123 | 117 120 120 149 Slowest Speed 1600 | 120 120 120 1600 Overloaded Moves . | . . . . Propulsion Burnouts . | . . . . Robots Hopped . | . . . . Potential Cave-ins . | . . . . Cave-ins Triggered . | . . . . Exploration Rate (%) 37 | 4 86 42 16 Regions Visited 3 Branch Regions . Pre-discovered Areas . | . . . . Known Exits Taken . | . . . . Unknown Exits Taken 3 | 1 1 1 . Scrap Searched . | . . . . Spaces Dug 1 | . . . 1 Terrain Destroyed 154 | . 60 32 62 Melee . | . . . . Projectile 4 | . . 1 3 AOE 150 | . 60 31 59 Terrain Rammed . | . . . . Walls Destroyed . | . . . . Machines Disabled . | . . . . Actions | -11 -10 -9 -8 --------- Run | Yrd Mat Mat Mat Total 1562 | 72 553 710 227 Wait 286 | . 52 210 24 Move 1067 | 62 430 434 141 Hop . | . . . . Pick Up 20 | 4 10 6 . Fast Attach 11 | 6 1 1 3 Attach 14 | . . 2 12 Detach . | . . . . Swap 30 | . 15 7 8 Drop 17 | . 10 6 1 Fire 105 | . 34 38 33 Melee 3 | . . . 3 Ram . | . . . . Kick 9 | . 1 6 2 Crush . | . . . . Escape Stasis . | . . . . Rewire . | . . . . Trap . | . . . . Miscellaneous . | . . . . Route ------- -11/Scrapyard -10/Materials (discovered 3 exits: *Mat x2 / [*Min]) -9/Materials (discovered 2 exits: *Mat x2) -8/Materials History --------- Turn | Location | Event 18 | -11/Scrapyard | Discovered new exit (range 15) 87 | -11/Scrapyard | Entered Materials 316 | -10/Materials | Build established: Mutant 334 | -10/Materials | Discovered new exit (range 10) 473 | -10/Materials | Discovered new exit (range 16) 760 | -10/Materials | Discovered new exit (range 11) 790 | -10/Materials | Entered another Materials area 790 | -9/Materials | Evolved 2 slots: Propulsion x1, Utility x1 1040 | -9/Materials | Discovered new exit (range 13) 1360 | -9/Materials | Repaired Grenade Launcher 1646 | -9/Materials | Discovered new exit (range 4) 1653 | -9/Materials | Entered another Materials area 1653 | -8/Materials | Evolved 2 slots: Power x1, Weapon x1 1836 | -8/Materials | Garrison activated, responded to threat 1928 | -8/Materials | Destroyed 9 combat bots 1983 | -8/Materials | Core integrity fell below 50% 2010 | -8/Materials | Destroyed 16 combat bots 2014 | -8/Materials | Core integrity fell below 20% 2021 | -8/Materials | Destroyed by G-50 Soldier with Heavy Laser Last Messages --------------- The unstable cave ceiling collapses. Destroyed Imp. Ion Engine. The unstable cave ceiling collapses. L-31 Rogue destroyed. The unstable cave ceiling collapses. Heat Sink destroyed. The unstable cave ceiling collapses. Mining Claw destroyed. The unstable cave ceiling collapses. K-01 Serf collects debris. The unstable cave ceiling collapses. U-05 Engineer lays Concrete. The unstable cave ceiling collapses. Critical hit (Burn: +37). The unstable cave ceiling collapses. Acquired 13 matter. U-05 Engineer builds a Wall. Ion Engine destroyed. The unstable cave ceiling collapses. W-25 Informer sends out distress signal. Map ----- +----------------------------------------------------+ | ??????????????????????????# #??# | | ??????????????????????????# #??# | | ??????????????????? #??# | | ??????????????????????######+##### ########??? | | ????????????????????????? ??# # ????????? | | ?????????????????????????? """ # # ????????? | | ???????????????????????????""""" + +?????????? | | ???????????????????????????""""" # #?????????? | | ???????????????????????????""""??# #???????????? | | ????????????????????????????"????# #???????????? | | ?????????????????????????????????# #???????????? | | ?????????????????????????????????# *#???????????? | | ???????????????????############### = #???????????? | | ???????????????????# !+ =%########### | | ???????????????????# #%= ! !%* | | ???????????????????# #!%!![ =! | | ???????????????????# #%=%%% ^^ | | ???????????????????# =#[%!############# | | ???????????????#???# # #?? #????? | | ???????????????# ??###### ####### %# !#????? | | ???????????????? ??# ####### + ! " #????? | | ????????????????##+## # ! % !%# %G #????? | | ?????????????? g g %% % *#??"" #????? | | ??????????????????## ## #%[ =%* #???? #????? | | ????????????######## ## # # # #??????#????? | | ????????????? ## %@# ##### #???????????? | | ????????????????????# g *%[ = # #???????????? | | ????????????????????# r * =* # ??????????? | | ????????????????????# Y # ????????? | | ????????????????????## "" + ???????? | | ?????????????????????# "Y " = # ??????? | | ?????????????????????# "" """ # === ??????? | | ?????????????????????# # ==[ ??????? | | ?????????????????????########## ## ==[ ???????? | | ???????????????????????????????### ????????? | | ?????????????????????????????????? ???????????? | | ??????????????????????????????????? ?????????????? | | ?????????????????????????????????????????????????? | | ?????????????????????????????????????????????????? | | ?????????????????????????????????????????????????? | | ?????????????????????????????????????????????????? | | ?????????????????????????????????????????????????? | | ?????????????????????????????????????????????????? | | ?????????????????????????????????????????????????? | | ?????????????????????????????????????????????????? | | ?????????????????????????????????????????????????? | | ?????????????????????????????????????????????????? | | ?????????????????????????????????????????????????? | | ?????????????????????????????????????????????????? | | ?????????????????????????????????????????????????? | +----------------------------------------------------+ Best States ------------- Heat Dissipation 45 Energy Generation 21 Energy Capacity 415 Matter Stores 300 Matter Capacity 300 Sight Range 16 Robot Scan Range 14 Terrain Scan Density 10 Additional Mass Support 6 Evasion (%) 55 Item Schematics ----------------- Grenade Launcher | -9/Materials | Scanalyzed Imp. Aluminum Leg | -9/Materials | Scanalyzed Huge Storage Unit | -9/Materials | Scanalyzed Ion Engine | -9/Materials | Scanalyzed Robot Schematics ------------------ None Fabricated ------------ Nothing Repaired ---------- Grenade Launcher | 18% | -9/Materials Alien Tech Used ----------------- None Achievements -------------- None Challenges ------------ None Game ------ Seed TerrabombCoolingMegatreads Manual? 0 Play Time 00:25:58 Cumulative 38.2 hours Start 2025.09.03 @ 00:09:48 End 2025.09.03 @ 00:39:42 Sessions 1 Manual Loads 0 Difficulty Rogue Special Mode None Game No. 31 Rogue 31 Adventurer 0 Explorer 0 Win Type - Total 0 Types 0/0/0/0/0/0/0/0/0/0 Lore% 22 Gallery% 29 Achievement% 27 Wizard Run 0 Options --------- Layout 0 ASCII 0 Keyboard 0 Movement Mouse Keybinds 0 Fullscreen 1 Font 24/X11 Map View 38x25 Zoom Use 98% Tactical HUD 0 Map Filters NONE Filters NONE Steam 1 RUN: 057f15b7-edbc-4e48-9300-35d420c3fa34